[Event "40th IND-chT Open 2020"]
[Site "Ahmedabad"]
[Date "2020.02.13"]
[Round "9.17"]
[White "Eshwanth Dev, Kumar J"]
[Black "Jatinder, Kapoor"]
[Result "1-0"]
[ECO "B80"]
[WhiteElo "1850"]
[BlackElo "1586"]
[Annotator "NA RC"]
[PlyCount "89"]
[EventDate "2020.02.05"]
[EventCountry "IND"]
[SourceTitle "playchess.com"]
[Source "ChessBase"]
[SourceQuality "1"]
[TimeControl "5400+30"]

{[%evp 8,85,27,17,30,8,19,2,25,24,75,38,79,69,81,68,70,77,83,27,67,57,78,56,125,105,178,175,153,141,176,108,160,-19,114,74,109,91,96,73,203,220,197,189,166,175,176,178,235,182,223,264,254,329,270,298,504,390,463,453,759,616,679,547,32767,527,424,582,491,499,1313,2102,2441,32767,32767,32767,32767,32767,6111,29985]} 1. e4 {[%emt 0:00:00]} c5 {[%emt 0:10:49]} 2. Nf3 {[%emt 0:00:00]} d6 {[%emt 0:00:23]} 3. d4 {[%emt 0:00:00]} cxd4 {[%emt 0:00:03]} 4. Nxd4 {[%emt 0:00:36]} Nf6 {[%emt 0:00:58]} 5. Nc3 {[%emt 0:00:05]} a6 {[%emt 0:00:01]} 6. f3 {[%emt 0:00:13]} e6 {[%emt 0:01:03]} 7. Be3 {[%emt 0:00:04]} Be7 {[%emt 0:00:13]} 8. Qd2 {[%emt 0:00:03]} Qc7 {[%emt 0:00:07]} 9. O-O-O {[%emt 0:00:08]} b5 {[%emt 0:00:08]} 10. g4 {[%emt 0:00:10]} Bb7 {[%emt 0:00:27]} 11. g5 {[%emt 0:02:03]} Nfd7 {[%emt 0:00:22]} 12. h4 {[%emt 0:00:20]} Nc6 {[%emt 0:00:12]} 13. h5 {[%emt 0:06:28] B80: Sicilian Scheveningen: 6 g3 and 6 Be3, including English Attack.} Nde5 {[%emt 0:07:33]} 14. Qg2 {[%emt 0:03:28] [#]} Nxd4 $146 {[%emt 0:48:27]} ({Predecessor:} 14... b4 15. Nce2 Nc4 16. Bg1 Qa5 17. Kb1 e5 18. Nxc6 Bxc6 19. Nc1 Na3+ 20. bxa3 bxa3 {1-0 (55) Fier,A (2590)-Van Beuzekom,L ICC INT 2009}) 15. Bxd4 {[%emt 0:05:13]} O-O-O {[%emt 0:05:45]} (15... O-O $14) 16. f4 {[%emt 0:04:51]} Nc4 {[%emt 0:00:07]} (16... Rhg8 $16) 17. Bxc4 {[%emt 0:02:15]} ({Much weaker is} 17. Bxg7 $6 Ne3 $11) 17... Qxc4 {[%emt 0:00:05]} 18. Bxg7 {[%emt 0:01:02]} Rhg8 {[%emt 0:00:02]} 19. Bd4 {[%emt 0:05:10]} Kb8 {[%emt 0:03:22]} 20. Be3 $2 {[%emt 0:19:59]} ({Better is} 20. Qf2 $18) 20... b4 {[%emt 0:01:49]} (20... Bf6 $1 $11 {remains equal.} 21. Qe2 Bxc3 22. Qxc4 bxc4 23. bxc3 Bxe4) 21. Rd4 {[%emt 0:01:07]} Qc5 {[%emt 0:02:16]} 22. Na4 {[%emt 0:03:32]} Qb5 {[%emt 0:00:04]} 23. b3 {[%emt 0:01:48]} Rc8 {[%emt 0:01:34]} (23... e5 $16 {was called for.} 24. fxe5 Qxe5) 24. Qd2 {[%emt 0:05:43]} a5 {[%emt 0:00:44]} 25. Rd1 {[%emt 0:08:42]} Rc6 {[%emt 0:01:48]} 26. Kb1 {[%emt 0:16:31]} Rgc8 {[%emt 0:00:35]} 27. Rc1 {[%emt 0:00:18]} Bf8 {[%emt 0:01:31]} 28. h6 {[%emt 0:00:46]} Be7 {[%emt 0:00:09] [#]} 29. f5 $1 {[%emt 0:03:23]} Ra6 {[%emt 0:05:06]} 30. f6 {[%emt 0:03:21]} Bf8 {[%emt 0:00:33]} 31. e5 {[%emt 0:04:14]} Bd5 $2 {[%emt 0:00:16]} (31... Qxe5 32. Bf4 Qf5) 32. Bf4 {[%emt 0:01:27]} dxe5 {[%emt 0:02:56]} 33. Bxe5+ {[%emt 0:00:04]} Rd6 {[%emt 0:01:28]} (33... Kb7 $142 34. c4 {[%mdl 64] Double Attack} bxc3 35. Nxc3 {[%mdl 64] Double Attack} Qc5) 34. Qf4 {[%emt 0:00:00]} Qa6 {[%emt 0:02:21]} 35. c4 {[%emt 0:01:45]} bxc3 {[%emt 0:00:04]} 36. Nxc3 {[%emt 0:00:50]} Ka8 {[%emt 0:00:27]} 37. Bxd6 {[%emt 0:01:08]} Bxd6 {[%emt 0:00:08]} 38. Qd2 {[%emt 0:01:11]} Rxc3 {[%emt 0:02:09]} 39. Qxc3 {[%emt 0:00:47]} Be5 {[%emt 0:00:03]} 40. Qc8+ {[%emt 0:00:24]} Qxc8 {[%emt 0:00:02]} 41. Rxc8+ {[%emt 0:00:04]} Kb7 {[%emt 0:00:01] [#]} 42. Rxd5 $1 {[%emt 0:00:14]} exd5 {[%emt 0:00:15]} 43. Rf8 {[%emt 0:00:05]} Kc6 {[%emt 0:03:16]} 44. Rxf7 {[%emt 0:00:07]} Bf4 {[%emt 0:00:06]} 45. g6 {[%emt 0:00:12]} 1-0